{"text_format":"1","workbook":"xlsx","n_sheets":3,"sheets":["Anexo II","Tabela","Dados"],"not_rendered":{"charts":0,"images":2,"macros":0,"external_links":0,"defined_names":9,"comments":1,"pivot_tables":0},"unopened":[],"bounds":{"document_bytes":16777216,"sheet_cells":100000,"rows_first":2000,"rows_last":500,"rows_between":2000,"halvings":0,"cell_chars":16384,"cell_head_chars":4096},"cells_cut":0,"cells_raw":0,"read":"whole","date_system":"1900"}

{"sheet":"Anexo II","index":0,"n_rows":37,"n_cols":12,"rows_kept":37,"cut":false,"hidden":false,"merged":[[13,3,13,6],[16,3,16,6],[10,3,10,6],[26,3,26,8],[29,3,29,8],[19,6,19,7],[20,6,20,7],[21,6,21,7],[22,6,22,7],[23,6,23,7],[20,3,21,3],[22,3,23,3],[34,4,34,5],[36,4,36,5],[34,2,34,3],[35,2,35,3],[35,4,35,6]]}
[]
[]
[]
[]
[null,null,"AVALIAÇÃO EXTERNA DO DESEMPENHO DOCENTE",null,null,null,null,null,"ANO LETIVO: 2021| 2022"]
[null,null,"Classificação da Observação de Aulas"]
[null,null,"(Despacho n.º 13981/2012 | Anexo II)"]
[]
[]
[null,null,"1.","Agrupamento de Escolas/Escola:"]
[null,null,null,"Agrupamento de Escolas Carlos Amarante",null,null,null,"Código:",{"$f":"IF(D11=\"\",\"\",VLOOKUP(D11,Dados!J3:K9,2,0))","v":150149}]
[]
[null,null,"2.","Docente Avaliado:"]
[null,null,null,null,null,null,null,"Grupo de Recrut.:"]
[]
[null,null,"3.","Avaliador Externo:"]
[null,null,null,null,null,null,null,"Grupo de Recrut.:"]
[]
[null,null,"4.","Classificação da Observação de Aulas:"]
[null,null,null,"Parâmetros","Especificações e ponderações",null,"Descrição",null,"Classificação "]
[null,null,null,"Científico \n(50%)","Conteúdo(s) disciplinar(es)",{"$f":"IF(ISBLANK(G22),50%,40%)","v":0.5},null,null,null,null,{"$f":"MATCH('Anexo II'!G21,Tabela!$B$2:$L$2,0)","v":{"$error":"#N/A"}},{"$f":"IF(AND(I21>=MIN(OFFSET(Tabela!$A$1,2,$K21,OFFSET(Tabela!$A$1,0,$K21,1,1),1)),I21<=MAX(OFFSET(Tabela!$A$1,2,$K21,OFFSET(Tabela!$A$1,0,$K21,1,1),1))),1,0)","v":{"$error":"#N/A"}}]
[null,null,null,null,"Conhecimentos que enquadram e agilizam a aprendizagem do(s) conteúdo(s) disciplinar(es)",{"$f":"50%-F21","v":0},null,null,null,null,{"$f":"MATCH(G22,Tabela!$B$2:$L$2,0)","v":{"$error":"#N/A"}},{"$f":"IFERROR(IF(AND(I22>=MIN(OFFSET(Tabela!$A$1,2,$K22,OFFSET(Tabela!$A$1,0,$K22,1,1),1)),I22<=MAX(OFFSET(Tabela!$A$1,2,$K22,OFFSET(Tabela!$A$1,0,$K22,1,1),1))),1,0),0)","v":0}]
[null,null,null,"Pedagógico \n(50%) ","Aspetos didáticos",0.4,null,null,null,null,{"$f":"MATCH(G23,Tabela!$B$2:$L$2,0)","v":{"$error":"#N/A"}},{"$f":"IF(AND(I23>=MIN(OFFSET(Tabela!$A$1,2,$K23,OFFSET(Tabela!$A$1,0,$K23,1,1),1)),I23<=MAX(OFFSET(Tabela!$A$1,2,$K23,OFFSET(Tabela!$A$1,0,$K23,1,1),1))),1,0)","v":{"$error":"#N/A"}}]
[null,null,null,null,"Aspetos relacionais",0.1,null,null,null,null,{"$f":"MATCH(G24,Tabela!$B$2:$L$2,0)","v":{"$error":"#N/A"}},{"$f":"IF(AND(I24>=MIN(OFFSET(Tabela!$A$1,2,$K24,OFFSET(Tabela!$A$1,0,$K24,1,1),1)),I24<=MAX(OFFSET(Tabela!$A$1,2,$K24,OFFSET(Tabela!$A$1,0,$K24,1,1),1))),1,0)","v":{"$error":"#N/A"}}]
[]
[null,null,"6.","Apreciação Global:"]
[null,null,null,{"$f":"IF(OR(I32>10,I32<1),\"\",IF(I32<=Dados!D28,Dados!C28,IF(I32<=Dados!D27,Dados!C27,IF(I32<=Dados!D26,Dados!C26,IF(I32<=Dados!D25,Dados!C25,IF(I32<=Dados!D24,Dados!C24,\"\"))))))","v":""}]
[]
[null,null,"7.","Recomendações:"]
[]
[]
[null,null,null,null,null,null,null,"Classificação Final.:",{"$f":"(I21*0.4)+(I22*0.1)+(I23*0.4)+(I24*0.1)","v":0}]
[]
[null,null,null,null,null,null,null,"Nível:",{"$f":"IF(I32=\"\",\"\",IF(I32<5,\"Insuficiente\",IF(I32<6.5,\"Regular\",IF(I32<8,\"Bom\",IF(I32<9,\"Muito Bom\",IF(I32<=10,\"Excelente\"))))))","v":"Insuficiente"}]
[null,null,"Data:"]
[null,null,"O Avaliador Externo:"]
[null,null,null,null,"(Assinatura)"]

{"sheet":"Tabela","index":1,"n_rows":42,"n_cols":17,"rows_kept":42,"cut":false,"hidden":true,"merged":[]}
[null,{"$f":"COUNTA(B3:B43)","v":11},10,15,{"$f":"COUNTA(E3:E43)","v":15},{"$f":"COUNTA(F3:F43)","v":40},null,{"$f":"COUNTA(H3:H43)","v":11},10,15,15,40]
[null,"Domínio pleno dos conteúdos disciplinares e de conhecimentos funcionais.","Muito bom domínio dos conteúdos disciplinares e de conhecimentos funcionais.","Bom domínio dos conteúdos disciplinares e de conhecimentos funcionais.","Domínio regular dos conteúdos disciplinares e de conhecimentos funcionais.","Falhas graves evidentes nos conteúdos disciplinares e nos conhecimentos funcionais.",null,"Segurança inequívoca tanto em termos relacionais como didáticos.","Muito boa segurança em termos relacionais e pedagógicos. ","Boa segurança em termos relacionais e pedagógicos.","Segurança regular em termos relacionais e  pedagógicos. ","Falhas graves evidentes em termos relacionais e pedagógicos."]
[null,10,8.9,7.9,6.4,4.9000000000000004,null,10,8.9,7.9,6.4,4.9000000000000004,null,null,null,{"$f":"MATCH('Anexo II'!G21,Tabela!$B$2:$L$2,0)","v":{"$error":"#N/A"}},{"$f":"IF(AND('Anexo II'!I21>=MIN(OFFSET(Tabela!$A$1,2,$P3,OFFSET(Tabela!$A$1,0,$P3,1,1),1)),'Anexo II'!I21<=MAX(OFFSET(Tabela!$A$1,2,$P3,OFFSET(Tabela!$A$1,0,$P3,1,1),1))),1,0)","v":{"$error":"#N/A"}}]
[null,9.9,8.8000000000000007,7.8,6.3,4.8,null,9.9,8.8000000000000007,7.8,6.3,4.8,null,null,null,{"$f":"MATCH('Anexo II'!G21,Tabela!$B$2:$L$2,0)","v":{"$error":"#N/A"}},{"$f":"IF(AND('Anexo II'!I22>=MIN(OFFSET(Tabela!$A$1,2,$P4,OFFSET(Tabela!$A$1,0,$P4,1,1),1)),'Anexo II'!I22<=MAX(OFFSET(Tabela!$A$1,2,$P4,OFFSET(Tabela!$A$1,0,$P4,1,1),1))),1,0)","v":{"$error":"#N/A"}}]
[null,9.8000000000000007,8.6999999999999993,7.7,6.2,4.7,null,9.8000000000000007,8.6999999999999993,7.7,6.2,4.7,null,null,null,{"$f":"MATCH('Anexo II'!G21,Tabela!$H$2:$L$2,0)","v":{"$error":"#N/A"}},{"$f":"IF(AND('Anexo II'!I23>=MIN(OFFSET(Tabela!$A$1,2,$P5,OFFSET(Tabela!$A$1,0,$P5,1,1),1)),'Anexo II'!I23<=MAX(OFFSET(Tabela!$A$1,2,$P5,OFFSET(Tabela!$A$1,0,$P5,1,1),1))),1,0)","v":{"$error":"#N/A"}}]
[null,9.6999999999999993,8.6,7.6,6.1,4.5999999999999996,null,9.6999999999999993,8.6,7.6,6.1,4.5999999999999996,null,null,null,{"$f":"MATCH('Anexo II'!G21,Tabela!$H$2:$L$2,0)","v":{"$error":"#N/A"}},{"$f":"IF(AND('Anexo II'!I24>=MIN(OFFSET(Tabela!$A$1,2,$P6,OFFSET(Tabela!$A$1,0,$P6,1,1),1)),'Anexo II'!I24<=MAX(OFFSET(Tabela!$A$1,2,$P6,OFFSET(Tabela!$A$1,0,$P6,1,1),1))),1,0)","v":{"$error":"#N/A"}}]
[null,9.6,8.5,7.5,6,4.5,null,9.6,8.5,7.5,6,4.5]
[null,9.5,8.4,7.4,5.9,4.4000000000000004,null,9.5,8.4,7.4,5.9,4.4000000000000004]
[null,9.4,8.3000000000000007,7.3,5.8,4.3,null,9.4,8.3000000000000007,7.3,5.8,4.3]
[null,9.3000000000000007,8.1999999999999993,7.2,5.7,4.2,null,9.3000000000000007,8.1999999999999993,7.2,5.7,4.2]
[null,9.1999999999999993,8.1,7.1,5.6,4.0999999999999996,null,9.1999999999999993,8.1,7.1,5.6,4.0999999999999996]
[null,9.1,8,7,5.5,4,null,9.1,8,7,5.5,4]
[null,9,null,6.9,5.4,3.9,null,9,null,6.9,5.4,3.9]
[null,null,null,6.8,5.3,3.8,null,null,null,6.8,5.3,3.8]
[null,null,null,6.7,5.2,3.7,null,null,null,6.7,5.2,3.7]
[null,null,null,6.6,5.0999999999999996,3.6,null,null,null,6.6,5.0999999999999996,3.6]
[null,null,null,6.5,5,3.5,null,null,null,6.5,5,3.5]
[null,null,null,null,null,3.4,null,null,null,null,null,3.4]
[null,null,null,null,null,3.3,null,null,null,null,null,3.3]
[null,null,null,null,null,3.2,null,null,null,null,null,3.2]
[null,null,null,null,null,3.1,null,null,null,null,null,3.1]
[null,null,null,null,null,3,null,null,null,null,null,3]
[null,null,null,null,null,2.9000000000000301,null,null,null,null,null,2.9000000000000301]
[null,null,null,null,null,2.80000000000003,null,null,null,null,null,2.80000000000003]
[null,null,null,null,null,2.7000000000000299,null,null,null,null,null,2.7000000000000299]
[null,null,null,null,null,2.6000000000000298,null,null,null,null,null,2.6000000000000298]
[null,null,null,null,null,2.5000000000000302,null,null,null,null,null,2.5000000000000302]
[null,null,null,null,null,2.4000000000000301,null,null,null,null,null,2.4000000000000301]
[null,null,null,null,null,2.30000000000003,null,null,null,null,null,2.30000000000003]
[null,null,null,null,null,2.2000000000000299,null,null,null,null,null,2.2000000000000299]
[null,null,null,null,null,2.1000000000000298,null,null,null,null,null,2.1000000000000298]
[null,null,null,null,null,2.0000000000000302,null,null,null,null,null,2.0000000000000302]
[null,null,null,null,null,1.9000000000000301,null,null,null,null,null,1.9000000000000301]
[null,null,null,null,null,1.80000000000003,null,null,null,null,null,1.80000000000003]
[null,null,null,null,null,1.7000000000000299,null,null,null,null,null,1.7000000000000299]
[null,null,null,null,null,1.6000000000000301,null,null,null,null,null,1.6000000000000301]
[null,null,null,null,null,1.50000000000003,null,null,null,null,null,1.50000000000003]
[null,null,null,null,null,1.4000000000000301,null,null,null,null,null,1.4000000000000301]
[null,null,null,null,null,1.30000000000003,null,null,null,null,null,1.30000000000003]
[null,null,null,null,null,1.2000000000000299,null,null,null,null,null,1.2000000000000299]
[null,null,null,null,null,1.1000000000000301,null,null,null,null,null,1.1000000000000301]
[null,null,null,null,null,1.00000000000003,null,null,null,null,null,1.00000000000003]

{"sheet":"Dados","index":2,"n_rows":108,"n_cols":13,"rows_kept":108,"cut":false,"hidden":true,"merged":[[2,1,6,1],[7,1,11,1],[12,1,16,1],[17,1,21,1],[23,1,27,1]]}
[]
[null,"PARÂMETOS:",null,null,null,null,"GRUPOS:",null,null,"ESCOLAS:",null,null,"ANO ESCOLAR:"]
[null,"Conteúdo(s) disciplinar(es)","Domínio pleno dos conteúdos disciplinares e de conhecimentos funcionais.",10,null,null,100,"Educação Pré-Escolar",null,"Agrupamento de Escolas Dr. Francisco Sanches",150988,null,"2012-2013"]
[null,null,"Muito bom domínio dos conteúdos disciplinares e de conhecimentos funcionais.",8.9,null,null,110,"1º CEB",null,"Agrupamento de Escolas Gonçalo Sampaio",150320,null,"2013-2014"]
[null,null,"Bom domínio dos conteúdos disciplinares e de conhecimentos funcionais.",7.9,null,null,120,"Inglês",null,"Agrupamento de Escolas Vieira de Araújo",150605,null,"2014-2015"]
[null,null,"Domínio regular dos conteúdos disciplinares e de conhecimentos funcionais.",6.4,null,null,200,"Português e Estudos Sociais/História",null,"Agrupamento de Escolas de Póvoa de Lanhoso",150915,null,"2015-2016"]
[null,null,"Falhas graves evidentes nos conteúdos disciplinares e nos conhecimentos funcionais.",4.9000000000000004,null,null,210,"Português e Francês",null,"Agrupamento de Escolas Carlos Amarante",150149,null,"2016-2017"]
[null,"Conhecimentos que enquadram e agilizam a aprendizagem do(s) conteúdo(s) disciplinar(es)","Domínio pleno dos conteúdos disciplinares e de conhecimentos funcionais.",10,null,null,220,"Português e Inglês",null,"Agrupamento de Escolas Sá de Miranda",150241,null,"2017-2018"]
[null,null,"Muito bom domínio dos conteúdos disciplinares e de conhecimentos funcionais.",8.9,null,null,230,"Matemática e Ciências da Natureza",null,"Conservatório de Música de Calouste Gulbenkian",404251,null,"2018-2019"]
[null,null,"Bom domínio dos conteúdos disciplinares e de conhecimentos funcionais.",7.9,null,null,240,"Educação Visual e Tecnológica",null,null,null,null,"2019-2020"]
[null,null,"Domínio regular dos conteúdos disciplinares e de conhecimentos funcionais.",6.4,null,null,250,"Educação Musical",null,null,null,null,"2020-2021"]
[null,null,"Falhas graves evidentes nos conteúdos disciplinares e nos conhecimentos funcionais.",4.9000000000000004,null,null,260,"Educação Física",null,null,null,null,"2021-2022"]
[null,"Aspetos didáticos que permitem estruturar a aula para tratar os conteúdos previstos nos documentos curriculares e alcançar os objetivos selecionados orientando as atividades em função dessa verificação e acompanhar a prestação dos alunos e proporcionar-lhe informação sobre a sua evolução.","Segurança inequívoca tanto em termos relacionais como didáticos.",10,null,null,290,"Educação Moral e Religiosa Católica",null,null,null,null,"2022-2023"]
[null,null,"Muito boa segurança em termos relacionais e pedagógicos. ",8.9,null,null,300,"Português"]
[null,null,"Boa segurança em termos relacionais e pedagógicos.",7.9,null,null,310,"Latim e Grego"]
[null,null,"Segurança regular em termos relacionais e  pedagógicos. ",6.4,null,null,320,"Francês"]
[null,null,"Falhas graves evidentes em termos relacionais e pedagógicos.",4.9000000000000004,null,null,330,"Inglês"]
[null,"Aspetos relacionais que permitam assegurar o funcionamento da aula com base em regras que acautelem a discilina; envolver os alunos e proporcionar a sua participação nas atividades; estimulá-los a melhorar a aprendizagem.","Segurança inequívoca tanto em termos relacionais como didáticos.",10,null,null,340,"Alemão"]
[null,null,"Muito boa segurança em termos relacionais e pedagógicos. ",8.9,null,null,350,"Espanhol"]
[null,null,"Boa segurança em termos relacionais e pedagógicos.",7.9,null,null,400,"História"]
[null,null,"Segurança regular em termos relacionais e  pedagógicos. ",6.4,null,null,410,"Filosofia"]
[null,null,"Falhas graves evidentes em termos relacionais e pedagógicos.",4.9000000000000004,null,null,420,"Geografia"]
[null,null,null,null,null,null,430,"Economia e Contabilidade"]
[null,"Apreciação global:","Revela domínio pleno na concretização da dimensão científica e pedagógica.",10,null,null,500,"Matemática"]
[null,null,"Revela muito bom domínio na concretização da dimensão científica e pedagógica.",8.9,null,null,510,"Física e Química"]
[null,null,"Revela bom domínio na concretização da dimensão científica e pedagógica.",7.9,null,null,520,"Biologia e Geologia"]
[null,null,"Revela domínio regular na concretização da dimensão científica e pedagógica.",6.4,null,null,530,"Educação Tecnológica"]
[null,null,"Revela falhas graves evidentes na concretização da dimensão científica e pedagógica.",4.9000000000000004,null,null,540,"Electrotecnia"]
[null,null,null,null,null,null,550,"Informática"]
[null,null,null,null,null,null,560,"Ciências Agro-pecuárias"]
[null,null,null,null,null,null,600,"Artes Visuais"]
[null,null,null,null,null,null,610,"Música"]
[null,null,null,null,null,null,620,"Educação Física"]
[null,null,null,null,null,null,910,"Ed. Especial 1 - Domínio cognitivo e motor, […]"]
[null,null,null,null,null,null,920,"Ed. Especial 2 - Domínio da audição e surdez, […]"]
[null,null,null,null,null,null,930,"Ed. Especial 3 - Domínio da visão, […]"]
[null,null,null,null,null,null,997,"Técnicos Especializados"]
[null,null,null,null,null,null,998,"AEC"]
[null,null,null,null,null,null,999,"Técnicas Especiais"]
[null,null,null,null,null,null,"D01","Dança Clássica"]
[null,null,null,null,null,null,"D02","Dança Moderna"]
[null,null,null,null,null,null,"D03","Dança Contemporânea"]
[null,null,null,null,null,null,"D04","Criação Coreográfica"]
[null,null,null,null,null,null,"D05","Danças Tradicionais"]
[null,null,null,null,null,null,"D06","Música"]
[null,null,null,null,null,null,"D07","Expressões"]
[null,null,null,null,null,null,"D08","Produção"]
[null,null,null,null,null,null,"D09","História das Artes"]
[null,null,null,null,null,null,"M01","Acordeão"]
[null,null,null,null,null,null,"M02","Alaúde"]
[null,null,null,null,null,null,"M03","Bandolim"]
[null,null,null,null,null,null,"M04","Clarinete"]
[null,null,null,null,null,null,"M05","Clavicórdio"]
[null,null,null,null,null,null,"M06","Contrabaixo"]
[null,null,null,null,null,null,"M07","Cravo"]
[null,null,null,null,null,null,"M08","Fagote"]
[null,null,null,null,null,null,"M09","Flauta Transversal"]
[null,null,null,null,null,null,"M10","Flauta de Bisel"]
[null,null,null,null,null,null,"M11","Guitarra"]
[null,null,null,null,null,null,"M12","Guitarra Portuguesa"]
[null,null,null,null,null,null,"M13","Harpa"]
[null,null,null,null,null,null,"M14","Oboé"]
[null,null,null,null,null,null,"M15","Órgão"]
[null,null,null,null,null,null,"M16","Percussão"]
[null,null,null,null,null,null,"M17","Piano"]
[null,null,null,null,null,null,"M18","Saxofone"]
[null,null,null,null,null,null,"M19","Trombone"]
[null,null,null,null,null,null,"M20","Trompa"]
[null,null,null,null,null,null,"M21","Trompete"]
[null,null,null,null,null,null,"M22","Tuba "]
[null,null,null,null,null,null,"M23","Viola de Arco "]
[null,null,null,null,null,null,"M24","Violino"]
[null,null,null,null,null,null,"M25","Violoncelo"]
[null,null,null,null,null,null,"M26","Canto"]
[null,null,null,null,null,null,"M27","Canto Gregoriano"]
[null,null,null,null,null,null,"M28","Formação Musical"]
[null,null,null,null,null,null,"M29","Análise e Técnicas de Composição"]
[null,null,null,null,null,null,"M30","História da Música"]
[null,null,null,null,null,null,"M31","Acústica"]
[null,null,null,null,null,null,"M32","Música de Conjunto"]
[null,null,null,null,null,null,"M33","Alemão"]
[null,null,null,null,null,null,"M34","Italiano"]
[null,null,null,null,null,null,"M35","Latim"]
[null,null,null,null,null,null,"M36","Francês"]
[]
[]
[null,null,100]
[null,null,110]
[null,null,200]
[null,null,210]
[null,null,220]
[null,null,230]
[null,null,240]
[null,null,250]
[null,null,260]
[null,null,290]
[null,null,300]
[null,null,330]
[null,null,400]
[null,null,420]
[null,null,500]
[null,null,510]
[null,null,520]
[null,null,530]
[null,null,550]
[null,null,600]
[null,null,620]
[null,null,910]